Cogmind - Beta 17 @@@ ROGUE MODE // 2026.07.09 @ 11:48:24 Player: Zish Result: Destroyed self Performance ------------- Evolutions (0) 0 Regions Visited (4) 800 Robots Destroyed (29) 145 Value Destroyed (506) 506 Prototype IDs (33) 660 Alien Tech Used (0) 0 Bonus (360) 360 TOTAL SCORE: 2471 Bonus ------- Follower Combat Kills 60 Aligned with FarCom 300 Cogmind --------- Core Integrity 0/250 Matter 300/300 Energy 100/100 System Corruption 2% Temperature Cool (12) Movement Treading (400) Ox3 Location -9/Mines Parts ------- > --- POWER (1) -------- (None) > --- PROPULSION (2) --- Light Treads > --- UTILITY (2) ------ Huge Storage Unit > --- WEAPON (2) ------- (None) > --- INVENTORY (25) --- Light Ion Engine Light Ion Engine Improved Heat Sink Large Storage Unit Light EM Pulse Cannon Light EM Pulse Cannon Beam Cannon Beam Cannon Shotgun Shotgun Mini Grenade Launcher Mini Grenade Launcher Datajack Mining Claw Peak State ------------ > --- POWER ------------ Ion Engine > --- PROPULSION ------- Light Treads Light Treads > --- UTILITY ---------- Large Storage Unit Targeting Computer > --- WEAPON ----------- YOLO Cannon > --- INVENTORY -------- Light Ion Engine Light Ion Engine Light Treads Improved Heat Sink Light EM Pulse Cannon Light EM Pulse Cannon Beam Cannon Beam Cannon Shotgun Shotgun Mini Grenade Launcher Mini Grenade Launcher Datajack [Rating: 27] Favorites ----------- Power Ion Engine Engine Ion Engine Propulsion Light Treads Treads Light Treads Utility Targeting Computer Storage Large Storage Unit Processor Targeting Computer Weapon Shotgun Energy Gun Medium Laser Energy Cannon Beam Cannon Ballistic Gun Shotgun Special Melee Weapon Datajack Build | -11 -10 -10 -10 -9 ------- Run | Yrd Mat Min Exi Min Slots Evolved . | . . . . . Power . | . . . . . Propulsion . | . . . . . Utility . | . . . . . Weapon . | . . . . . Parts Attached 20 | 7 8 2 2 1 Power 2 | 1 1 . . . Engine 2 | 1 1 . . . Core . | . . . . . Reactor . | . . . . . Propulsion 3 | 2 1 . . . Treads 3 | 2 1 . . . Leg . | . . . . . Wheel . | . . . . . Hover . | . . . . . Flight . | . . . . . Utility 5 | 1 3 . . 1 Device . | . . . . . Storage 4 | 1 2 . . 1 Processor 1 | . 1 . . . Hackware . | . . . . . Protection . | . . . . . Artifact . | . . . . . Weapon 10 | 3 3 2 2 . Energy Gun 2 | 1 1 . . . Energy Cannon 3 | . 2 . 1 . Ballistic Gun 4 | 2 . 2 . . Ballistic Cannon . | . . . . . Launcher . | . . . . . Special Weapon . | . . . . . Impact Weapon . | . . . . . Slashing Weapon . | . . . . . Piercing Weapon . | . . . . . Special Melee Weapon 1 | . . . 1 . Unidentified Prototypes . | . . . . . Parts Lost 7 | . 2 . . 5 Power 2 | . 1 . . 1 Propulsion 2 | . . . . 2 Utility 1 | . . . . 1 Weapon 2 | . 1 . . 1 Highest Loss Streak 4 | . 2 . . 4 To Critical Strikes . | . . . . . Average Backups 9 | 1 6 10 11 13 Power 1 | . 1 2 2 2 Propulsion . | . . 1 1 . Utility . | . . . 1 1 Weapon 5 | . 3 6 7 8 Tool/Special . | . . . . . Unused Backups 10 | . 2 . . 8 Power 2 | . . . . 2 Propulsion . | . . . . . Utility 1 | . . . . 1 Weapon 7 | . 2 . . 5 Tool/Special . | . . . . . Average Slot Usage (%) 92 | . 94 100 95 84 Engine 13 | . 13 14 14 14 Treads 27 | . 28 28 28 27 Storage 14 | . 14 14 14 14 Processor 12 | . 8 14 14 14 Energy Gun 2 | . 7 . . . Energy Cannon 10 | . 16 1 4 14 Ballistic Gun 8 | . 3 27 11 . Special Melee Weapon 1 | . . . 8 . Peak Build Rating 27 | 6 8 10 27 27 Average Rating 14 | 5 7 9 14 26 On Entrance 10 | . 6 8 10 27 Avg Prop Armor Cover (%) . | . . . . . Naked Turns . | . . . . . Heaviest Build 103 | 13 31 31 43 103 Greatest Support 40 | 40 40 40 40 40 Greatest Overweight (x) 2 | . . . 1 2 Average Overweight (x) . | . . . . 1 Largest Inventory Capacity 25 | 8 15 15 15 25 Average Capacity 14 | 7 10 15 15 17 Most Carried 14 | 2 10 11 14 14 Average Carried 9 | 1 6 10 11 13 Final Capacity 25 | 8 15 15 15 25 Final Carried 14 | 2 10 11 13 14 Class Distribution -------------------- 100% | Mutant Dominant Class ---------------- Mutant | -10/Materials Mutant | -10/Mines Mutant | -10/Exiles Mutant | -9/Mines Resources | -11 -10 -10 -10 -9 ----------- Run | Yrd Mat Min Exi Min Matter Collected 600 | 247 155 110 . 88 Remotely . | . . . . . Salvage Created 842 | 97 520 69 . 156 Parts 57 | . 49 6 . 2 Haulers Intercepted 1 | . 1 . . . Recyclers Shooed . | . . . . . Parts Field Recycled . | . . . . . Retrieved Matter . | . . . . . Parts Self-Destructed . | . . . . . Prevented . | . . . . . Parts Restored . | . . . . . Kills | -11 -10 -10 -10 -9 ------- Run | Yrd Mat Min Exi Min Combat Hostiles Destroyed 34 | . 12 4 . 18 Guns 13 | . 10 3 . . Cannons 11 | . 2 1 . 8 AOE 9 | . . . . 9 Classes Destroyed 11 | 1 8 . . 2 Worker 3 | . 2 1 . . Builder 2 | . 1 . . 1 Tunneler 1 | . 1 . . . Hauler 1 | . 1 . . . Recycler 1 | 1 . . . . Operator 1 | . 1 . . . Watcher 2 | . 2 . . . Swarmer 10 | . 6 4 . . Grunt 6 | . 6 . . . Demolisher 2 | . . . . 2 Assembled 16 | . . . . 16 Best Kill Streak 7 | 1 6 2 . 7 Combat Bots Only 7 | . 6 2 . 7 Max Kills in Single Turn 3 | 1 2 2 . 3 Gunslinging 1 | . . 1 . . Exploded 2 | . . . . 2 Melee . | . . . . . Uniques/NPCs Destroyed . | . . . . . Combat | -11 -10 -10 -10 -9 -------- Run | Yrd Mat Min Exi Min Hostile Shots Fired 99 | . 52 23 . 24 Missed 34 | . 15 8 . 11 Hits 65 | . 37 15 . 13 Projectile 65 | . 37 15 . 13 Damage Taken 1005 | . 418 143 . 444 Core 259 | . 33 19 . 207 Absorbed by Shields . | . . . . . Core Remaining (%) 100 | 100 . . . . Volleys Fired 83 | 5 45 11 . 22 Largest 2 | 2 2 2 . 1 Hottest 120 | 70 120 120 . 100 Shots Fired 142 | 10 89 22 . 21 Gun 81 | 10 59 12 . . Cannon 61 | . 30 10 . 21 Launcher . | . . . . . Special . | . . . . . Kinetic 39 | 5 22 12 . . Thermal 87 | 5 51 10 . 21 Explosive . | . . . . . Electromagnetic 16 | . 16 . . . Robot Hit Streak 10 | 5 10 8 . 2 Robot Miss Streak 4 | 1 4 4 . 2 Penetration Max . | . . . . . Secondary Targets 3 | . 2 1 . . Max Gunslinging Chain 1 | . 1 1 . . Shots Hit Robots 81 | 8 48 15 2 8 Core Hits 50 | 2 25 7 . 16 Critical Kills 1 | . . . . 1 Critical Parts Destroyed 1 | . 1 . . . Critical Strikes 4 | . 3 . . 1 Burn 2 | . 2 . . . Meltdown 1 | . . . . 1 Destroy 1 | . 1 . . . Melee Attacks 2 | . . . 2 . Impact . | . . . . . Slashing . | . . . . . Piercing . | . . . . . Sneak Attacks 2 | . . . 2 . Combat Hostiles . | . . . . . Follow-up Attacks . | . . . . . Damage Inflicted 2994 | 79 807 246 . 1862 Guns 645 | 79 413 153 . . Cannons 1397 | . 270 93 . 1034 Explosions 952 | . 124 . . 828 Melee . | . . . . . Ramming . | . . . . . Kinetic 297 | 30 114 153 . . Thermal 2616 | 49 612 93 . 1862 Explosive . | . . . . . Electromagnetic 81 | . 81 . . . Impact . | . . . . . Slashing . | . . . . . Piercing . | . . . . . Highest Corruption 2 | . 2 2 2 2 Average Corruption 1 | . 1 2 2 2 Corruption Purged . | . . . . . Corruption Blocked . | . . . . . Effects 54 | . 19 10 4 21 Message Errors 13 | . . 4 2 7 Matter Fused 16 | . 6 4 2 4 Heat Flow Errors 5 | . 5 . . . Energy Discharges 3 | . 2 1 . . Parts Fused 1 | . 1 . . . Data Loss (minor) 11 | . 5 1 . 5 Data Loss (major) 4 | . . . . 4 Alerts 1 | . . . . 1 Overload Shots . | . . . . . Overflow Damage 300 | . 10 . . 290 Projectiles 185 | . . . . 185 Explosions 115 | . 10 . . 105 Melee . | . . . . . Knockbacks . | . . . . . Impact . | . . . . . Kinetic . | . . . . . Secondary . | . . . . . Self-Inflicted Damage 301 | . 52 . . 249 Shots 5 | . 1 . . 4 Rammed . | . . . . . Targets Rammed . | . . . . . Kicked . | . . . . . Crushed . | . . . . . Highest Temperature 439 | 90 439 242 . 80 Average Temperature 93 | 53 119 136 . 24 Received Heat Transfer 177 | . 144 33 . . Effects 2 | . 2 . . . Shutdowns 1 | . 1 . . . Energy Bleed 1 | . 1 . . . Siege Activations . | . . . . . Martial Activations . | . . . . . Shielding Activations . | . . . . . Robots Disrupted . | . . . . . Combat Hostiles . | . . . . . Robots Corrupted . | . . . . . Combat Hostiles . | . . . . . Parts Fried . | . . . . . Impact Corruptions . | . . . . . Robots Melted 1 | . . . . 1 Combat Hostiles 1 | . . . . 1 Parts Melted 2 | . . . . 2 Heat Transferred 3285 | 148 1432 185 . 1520 Parts Sabotaged . | . . . . . Parts Stolen . | . . . . . Parts Stripped . | . . . . . Power Chain Reactions . | . . . . . Alert | -11 -10 -10 -10 -9 ------- Run | Yrd Mat Min Exi Min Maximum Alert Level . | . . . . . Low Security (%) 100 | 100 100 100 . 100 Level 1 . | . . . . . Level 2 . | . . . . . Level 3 . | . . . . . Level 4 . | . . . . . Level 5 . | . . . . . High Security . | . . . . . Max Security . | . . . . . Peak Influence 124 | 5 124 61 . 62 Initial . | . . . . . Average 21 | . 42 13 . 7 Influence Increases 749 | 5 406 159 . 179 Destroy 0b10 Robot/C 400 | . 240 120 . 40 Destroy 0b10 Robot/NC 55 | 5 40 5 . 5 Destroy Leader 86 | . 56 20 . 10 Allied During Kill 14 | . . 14 . . Successful Hack 17 | . 17 . . . Disable Machine 30 | . 15 . . 15 Destroy Structure 147 | . 38 . . 109 Influence Decreases 749 | 5 406 150 9 179 Entered New Map 9 | . . . 9 . Time Decay 710 | 5 386 150 . 169 Lost Part 30 | . 20 . . 10 Squads Dispatched 3 | . 3 . . . Investigation 2 | . 2 . . . Extermination . | . . . . . Reinforcement 1 | . 1 . . . Assault . | . . . . . Garrison . | . . . . . Intercept . | . . . . . Searches Triggered . | . . . . . Construction Impeded . | . . . . . Haulers Reinforced . | . . . . . Active Scanning Responses . | . . . . . Cargo Convoy Interrupts . | . . . . . Stealth | -11 -10 -10 -10 -9 --------- Run | Yrd Mat Min Exi Min Distress Signals . | . . . . . Communications Jammed . | . . . . . Distress Signals . | . . . . . Times Spotted 45 | . 21 8 . 16 Peak Tracking Total 4 | . 4 3 . 2 Tactical Retreats 4 | . . . . 4 Traps | -11 -10 -10 -10 -9 ------- Run | Yrd Mat Min Exi Min Traps Triggered 1 | . 1 . . . Indirectly . | . . . . . Trap Hack Attempts . | . . . . . Triggered . | . . . . . Disarmed . | . . . . . Reprogrammed . | . . . . . Reused . | . . . . . Traps Extracted . | . . . . . Installed . | . . . . . Triggered . | . . . . . Machines | -11 -10 -10 -10 -9 ---------- Run | Yrd Mat Min Exi Min Machines Disabled 2 | . 1 . . 1 Max in Single Turn 1 | . 1 . . 1 Machines Repaired . | . . . . . Machines Dismantled . | . . . . . Machines Sabotaged . | . . . . . Overloaded Fab Kills . | . . . . . Hacking | -11 -10 -10 -10 -9 --------- Run | Yrd Mat Min Exi Min Machines Accessed 9 | . 5 . 4 . Terminals 5 | . 5 . . . Fabricators . | . . . . . Repair Stations . | . . . . . Recycling Units . | . . . . . Scanalyzers . | . . . . . Garrison Access . | . . . . . Total Hacks 39 | . 12 . 27 . Successful 31 | . 4 . 27 . Failed 7 | . 7 . . . Catastrophic 3 | . 3 . . . Database Lockouts 1 | . 1 . . . Manual 11 | . 10 . 1 . Terminals 12 | . 12 . . . Fabricators . | . . . . . Repair Stations . | . . . . . Recycling Units . | . . . . . Scanalyzers . | . . . . . Garrison Access . | . . . . . Terminal Hacks 30 | . 3 . 27 . Record 26 | . . . 26 . Robot Analysis 2 | . 2 . . . Prototype ID Bank 1 | . 1 . . . Proto ID Catalog 1 | . . . 1 . Fabricator Hacks . | . . . . . Repair Station Hacks . | . . . . . Recycling Unit Hacks . | . . . . . Scanalyzer . | . . . . . Garrison Access Hacks . | . . . . . Unauthorized Hacks 1 | . 1 . . . Terminals 1 | . 1 . . . Operators 1 | . 1 . . . Fabricators . | . . . . . Repair Stations . | . . . . . Recycling Units . | . . . . . Scanalyzers . | . . . . . Garrison Access . | . . . . . Data Cores Recovered . | . . . . . Used . | . . . . . Hacking Detections 3 | . 3 . . . Full Trace Events 3 | . 3 . . . Feedback Events 1 | . 1 . . . Corruption 1 | . 1 . . . Feedback Blocked . | . . . . . Robot Schematics Acquired . | . . . . . Robots Built . | . . . . . Authchips . | . . . . . Time . | . . . . . Total Robot Build Rating . | . . . . . Part Schematics Acquired . | . . . . . Parts Built . | . . . . . Authchips . | . . . . . Time . | . . . . . Total Part Build Rating . | . . . . . Part Studies Acquired . | . . . . . Parts Repaired . | . . . . . Time . | . . . . . Parts Recycled . | . . . . . Recycled Matter . | . . . . . Retrieved Matter . | . . . . . Retrieved Components . | . . . . . Parts Scanalyzed . | . . . . . Part Schematics Acquired . | . . . . . Parts Damaged . | . . . . . Bothacking | -11 -10 -10 -10 -9 ------------ Run | Yrd Mat Min Exi Min Used RIF Installer . | . . . . . Robots Hacked 1 | . . . 1 . Non-combat . | . . . . . Combat 1 | . . . 1 . Robot Hacks Applied 2 | . . . 2 . parse_system 2 | . . . 2 . Relay Couplers Released . | . . . . . Fabnet Peak Effective % . | . . . . . Robots Rewired . | . . . . . Allies Hacked . | . . . . . Hacks Repelled . | . . . . . Allies | -11 -10 -10 -10 -9 -------- Run | Yrd Mat Min Exi Min Total Allies 3 | . . 3 . . Largest Group 3 | . . 3 3 3 Highest-Rated Group 40 | . . 40 40 40 Highest-Rated Ally 16 | . . 16 16 16 Total Orders . | . . . . . Ally Attacks 15 | . . 9 . 6 Total Damage 146 | . . 94 . 52 Kills 2 | . . 2 . . Allies Corrupted . | . . . . . Allies Melted . | . . . . . Intel | -11 -10 -10 -10 -9 ------- Run | Yrd Mat Min Exi Min Active Infowar (turns) . | . . . . . Robot Analysis Total 2 | . 2 . . . Derelict Logs Recovered 1 | . . . . 1 Drone Launches . | . . . . . Drone Recoveries . | . . . . . Exploration | -11 -10 -10 -10 -9 ------------- Run | Yrd Mat Min Exi Min Turns Passed 3961 | 111 1286 828 467 1269 Spaces Moved 1951 | 57 699 486 259 450 Core 5 | 5 . . . . Treads 1946 | 52 699 486 259 450 Legs . | . . . . . Wheels . | . . . . . Hover . | . . . . . Flight . | . . . . . Fastest Speed 50 | 50 160 160 160 240 Average Speed 184 | 150 160 160 178 257 Slowest Speed 320 | 160 160 160 240 320 Overloaded Moves . | . . . . . Propulsion Burnouts . | . . . . . Robots Hopped . | . . . . . Potential Cave-ins . | . . . . . Cave-ins Triggered . | . . . . . Exploration Rate (%) 65 | 3 86 90 62 84 Regions Visited 4 Branch Regions 3 Pre-discovered Areas 1 | . . . . 1 Known Exits Taken . | . . . . . Unknown Exits Taken 4 | 1 1 1 1 . Scrap Searched 2 | . . 1 . 1 Spaces Dug . | . . . . . Terrain Destroyed 234 | . 39 . . 195 Melee . | . . . . . Projectile 12 | . . . . 12 AOE 222 | . 39 . . 183 Terrain Rammed . | . . . . . Walls Destroyed . | . . . . . Machines Disabled . | . . . . . Actions | -11 -10 -10 -10 -9 --------- Run | Yrd Mat Min Exi Min Total 2135 | 70 785 516 266 498 Wait 47 | . 9 15 . 23 Move 1947 | 56 698 485 258 450 Hop . | . . . . . Pick Up 17 | 2 12 1 1 1 Fast Attach 11 | 6 5 . . . Attach 7 | . 2 2 2 1 Detach 9 | . 4 2 3 . Swap 4 | 1 2 . . 1 Drop 8 | . 8 . . . Fire 83 | 5 45 11 . 22 Melee 2 | . . . 2 . Ram . | . . . . . Kick . | . . . . . Crush . | . . . . . Escape Stasis . | . . . . . Rewire . | . . . . . Trap . | . . . . . Miscellaneous . | . . . . . Route ------- -11/Scrapyard -10/Materials (discovered 3 exits: [*Mat x2] / [*Min]) -10/Mines (discovered 3 exits: [*Mat x2] / *Exi) -10/Exiles -9/Mines History --------- Turn | Location | Event 24 | -11/Scrapyard | Discovered new exit (range 15) 112 | -11/Scrapyard | Entered Materials 303 | -10/Materials | Build established: Mutant 336 | -10/Materials | Discovered new exit (range 16) 577 | -10/Materials | Discovered new exit (range 7) 897 | -10/Materials | Central database locked down 1166 | -10/Materials | Discovered new exit (range 16) 1398 | -10/Materials | Entered Mines 1499 | -10/Mines | Discovered new exit (range 5) 1736 | -10/Mines | Assisted by bots powering up and referring to "LRC-V3" 2140 | -10/Mines | Discovered new exit (range 10) 2215 | -10/Mines | Deemed a non-threat by the Exiles lab entrance 2217 | -10/Mines | Discovered new exit (range 5) 2226 | -10/Mines | Entered Exiles 2226 | -10/Exiles | Accompanied by 3 allies 2270 | -10/Exiles | Met 8R-AWN 2303 | -10/Exiles | Met EX-HEX 2367 | -10/Exiles | Met EX-BIN 2386 | -10/Exiles | Aligned with FarCom system 2388 | -10/Exiles | Given EX-Vault access code 2484 | -10/Exiles | Opened EX-Vault 2495 | -10/Exiles | Found YOLO Cannon 2530 | -10/Exiles | Warned to stay clear of 0b10 Research branches 2550 | -10/Exiles | Exiles lab attacked by MAIN.C 2674 | -10/Exiles | Discovered new exit (range 10) 2693 | -10/Exiles | Left Exiles lab with YOLO Cannon 2693 | -10/Exiles | Entered Mines 2693 | -9/Mines | Accompanied by 3 allies 2913 | -9/Mines | Assembled infested the area 2997 | -9/Mines | Lost 4 allies 3242 | -9/Mines | Destroyed 7 combat bots 3267 | -9/Mines | Core integrity fell below 50% 3386 | -9/Mines | Received a Rocket Launcher from a helpful Derelict 3962 | -9/Mines | YOLO Cannon suddenly exploded 3962 | -9/Mines | Destroyed self Last Messages --------------- 03558_ as-05503 destroyed. 03567_ AA9PLLJ:2M&QVIPKBO& 03621_ 3FPIUWXA9NYOY7O8G7JYADYE 03962_ YOLO Cannon suddenly explodes. 03962_ Ion Engine destroyed. 03962_ Lgt. Treads destroyed. 03962_ Targeting Computer destroyed. 03962_ Core damaged (-38). [Achievement: YOLO] Map ----- +----------------------------------------------------+ | ??###????######?????????????????????######???????? | | ?## #?### #####???????????####??# ##??????? | | ?# ## ##?????????## ##?# #??????? | | ?# ##???????## #?# #??####?? | | ?# #??????## #?# #?## ##? | | ??# #?????## ### ### #? | | ??### ##???## ### ### #? | | ????## ## ##### #?#= ## #? | | ?????# %### % #?#%* ## #? | | ?????# #?## "" #?# ## ## | | ?????# #??# "" "" #?# ## | | ?????# #??#* # #"" "# #?#*%! | | ?????# #??#% ## ##### ##" "# ### | ## | | ?????# #??#= #####???## ## ### | | ?????# #?## #####????###### ###### =% ##?? | | ?????# ### ##????????# #????# = #??? | | ?????# ## #????????# #????## ##??? | | ?????# ## #?######## #?????## ### #???? | | ?????# # ##?# ? #??????####?# #???? | | ?????# #??# ?? #???????????# #???? | | ?????# ##?# #??#####???????????# #???? | | ?????####### r ### ####???????????????# #???? | | ???????????## |%= # #######?????????# #???? | | ???????????## %! %|## ##?#####??? #???? | | ???????????# = ### #### ##### | | ???????????# @ % % % %# | | ???????????# < ! ######### # | | ???????????## ### ### ##???????# # | | ????????????## ####?# #?## ##????????# | | ?????????????####????# ## #??????#### | | ?????????????????????## ## ##?????## "## | | ??###?????????????????## #####??????# # | | ## ##?????????????????## #?????????## " | | # #??????????????????## ##?????????# | | #???????????????????## ###??????????## | | #????????????????????####???????????## | | #???????????????????????????????????# | | #???????????????#????????????????????# | | # ######??????????? ##??????????????????# | | # ## ##?????????? ##????????????????## | | # "%" #?????????? ##?????????????? # # | | " #?????????? ##?????????????# | | ####???????? #?????????????# | | ## #??????? #?????????????# # ## | | #"" ##?????# #??????????????#### # # | | "" ###??## #????????????????# # # | | %= #### #?????????????##### # # | | ## ] # #??????????????# # | | ### % # #??????????????# ##" # # | | ##?# % # #??????????????# ##" ## # | +----------------------------------------------------+ Best States ------------- Heat Dissipation 25 Energy Generation 10 Energy Capacity 250 Matter Stores 300 Matter Capacity 300 Sight Range 16 Terrain Scan Density 10 Evasion (%) 40 Targeting Accuracy 5 Recoil Reduction 2 Item Schematics ----------------- None Robot Schematics ------------------ None Fabricated ------------ Nothing Repaired ---------- Nothing Studied --------- None Alien Tech Used ----------------- None Achievements -------------- YOLO Challenges ------------ None Game ------ Seed BladeHoverRigger Manual? 0 Play Time 00:23:04 Cumulative 37.4 hours Start 2026.07.09 @ 11:27:24 End 2026.07.09 @ 11:48:24 Sessions 1 Manual Loads 0 Difficulty Rogue Special Mode None Game No. 104 Rogue 104 Adventurer 0 Explorer 0 Win Type - Total 0 Types 0/0/0/0/0/0/0/0/0/0 Lore% 20 Gallery% 29 Achievement% 24 Wizard Run 0 Options --------- Layout 1 ASCII 0 Keyboard 1 Movement Vi Keybinds 0 Fullscreen 1 Font 24/Smallcaps Map View 50x35 Zoom Use 0% Tactical HUD 1 Map Filters NONE Filters NONE Steam 1 RUN: 792d6818-c3ff-42d3-a3f2-239013c4f160